Cogmind - Beta 12 @@@ ROGUE MODE // 2023.04.05 @ 23:13:35 Player: Mr Goldstein Result: Destroyed by G-73 Enforcer with Heavy Laser Performance ------------- Evolutions (9) 4500 Regions Visited (15) 3000 Robots Destroyed (140) 700 Value Destroyed (3448) 3448 Prototype IDs (6) 120 Alien Tech Used (0) 0 Bonus (836) 836 TOTAL SCORE: 12604 Bonus ------- High Alert Combat Kills 336 Entered DSFs 500 Cogmind --------- Core Integrity 0/1600 Matter 261/300 Energy 99/100 System Corruption 11% Temperature Cool (0) Movement Core (50) Location -1/Access Parts ------- > --- POWER (3) -------- (None) > --- PROPULSION (9) --- (None) > --- UTILITY (11) ----- Enhanced Optical Array > --- WEAPON (2) ------- (None) > --- INVENTORY (5) ---- Particle Reactor Peak State ------------ > --- POWER ------------ Light Nuclear Core F-cell Engine > --- PROPULSION ------- Xenon Bombardment Thruster Xenon Bombardment Thruster Xenon Bombardment Thruster Field Propulsion Drive Field Propulsion Drive Field Propulsion Drive Field Propulsion Drive > --- UTILITY ---------- Enhanced Optical Array Advanced Signal Interpreter Improved Propulsion Shielding Hacking Suite Hacking Suite Hacking Suite System Shield System Shield > --- WEAPON ----------- Katana Axe > --- INVENTORY -------- F-cell Engine F-cell Engine [Rating: 80] Favorites ----------- Power Ion Engine Engine Ion Engine Power Core Light Nuclear Core Reactor Particle Reactor Propulsion Armored Wheel Treads Armored Treads Wheel Armored Wheel Flight Unit Xenon Bombardment Thruster Utility Huge Storage Unit Device Improved Heat Sink Storage Huge Storage Unit Processor Enhanced Optical Array Hackware Hacking Suite Protection Hardened Light Armor Plating Weapon Heavy Laser Energy Gun Heavy Laser Ballistic Gun Assault Rifle Launcher Grenade Launcher Slashing Weapon Axe Build | -11 -10 -10 -9 -9 -8 -7 -6 -5 -4 -4 -4 -3 -3 -2 -1 ------- Run | Jun Mat Min Mat Min Mat Fac Fac Fac Fac Upp Upp Res DSF Res Acc Slots Evolved 18 | . . . 2 . 2 2 2 2 2 . . 2 . 2 2 Power 2 | . . . . . . . 1 . . . . . . . 1 Propulsion 7 | . . . 1 . 1 . 1 . 2 . . 1 . . 1 Utility 9 | . . . 1 . 1 2 . 2 . . . 1 . 2 . Weapon . | . . . . . . . . . . . . . . . . Parts Attached 163 | 6 8 4 24 . 50 16 5 10 16 6 1 1 . 4 12 Power 17 | 1 . . 4 . 4 1 2 . 2 1 . . . . 2 Engine 10 | 1 . . 4 . 1 . 1 . 1 1 . . . . 1 Core 6 | . . . . . 3 1 1 . 1 . . . . . . Reactor 1 | . . . . . . . . . . . . . . . 1 Propulsion 60 | 2 2 . 3 . 18 8 2 6 13 1 . 1 . . 4 Treads 4 | . . . . . 4 . . . . . . . . . . Leg . | . . . . . . . . . . . . . . . . Wheel 20 | 2 2 . 3 . 10 . . . . . . . . . 3 Hover . | . . . . . . . . . . . . . . . . Flight 36 | . . . . . 4 8 2 6 13 1 . 1 . . 1 Utility 39 | 1 2 1 5 . 10 5 1 4 1 3 1 . . 3 2 Device 12 | . . . 2 . 3 1 1 . . 2 . . . 2 1 Storage 4 | 1 1 . 1 . 1 . . . . . . . . . . Processor 5 | . . . . . 1 1 . 2 . . . . . 1 . Hackware 7 | . . . . . . 3 . 1 1 1 1 . . . . Protection 11 | . 1 1 2 . 5 . . 1 . . . . . . 1 Artifact . | . . . . . . . . . . . . . . . . Weapon 47 | 2 4 3 12 . 18 2 . . . 1 . . . 1 4 Energy Gun 9 | 1 1 . . . 3 . . . . . . . . . 4 Energy Cannon . | . . . . . . . . . . . . . . . . Ballistic Gun 24 | 1 2 2 9 . 10 . . . . . . . . . . Ballistic Cannon . | . . . . . . . . . . . . . . . . Launcher 10 | . 1 1 3 . 5 . . . . . . . . . . Special Weapon . | . . . . . . . . . . . . . . . . Impact Weapon . | . . . . . . . . . . . . . . . . Slashing Weapon 4 | . . . . . . 2 . . . 1 . . . 1 . Piercing Weapon . | . . . . . . . . . . . . . . . . Special Melee Weapon . | . . . . . . . . . . . . . . . . Unidentified Prototypes 4 | . . . 2 . 1 . 1 . . . . . . . . Parts Lost 65 | . . 1 6 . 19 . 2 1 12 . . . 2 10 12 Power 6 | . . . 2 . 2 . . . 1 . . . . 1 . Propulsion 26 | . . . 2 . 7 . 1 . 6 . . . 2 4 4 Utility 23 | . . 1 1 . 5 . 1 1 4 . . . . 5 5 Weapon 10 | . . . 1 . 5 . . . 1 . . . . . 3 Highest Loss Streak 12 | . . 1 4 . 7 . 2 1 12 . . . 2 12 4 To Critical Strikes . | . . . . . . . . . . . . . . . . Average Slot Usage (%) 86 | . 99 99 97 100 81 98 98 99 76 63 68 69 71 55 27 Engine 7 | . 14 14 10 11 3 . 5 5 4 10 10 9 9 3 1 Core 2 | . . . . . 5 7 6 5 3 . . . . . . Treads 2 | . . . . . 5 . . . . . . . . . . Wheel 18 | . 28 28 31 33 15 . . . . . . . . . 3 Flight 4 | . . . . . . 29 32 28 28 26 26 26 28 15 . Device 6 | . . . 10 11 8 15 12 5 . 4 5 4 4 8 3 Storage 9 | . 14 14 11 11 10 . . . . . . . . . . Processor 2 | . . . . . 2 7 6 11 10 10 10 9 9 10 7 Hackware 3 | . . . . . . 22 20 23 16 11 15 19 19 12 5 Protection 9 | . 13 13 10 11 11 . . 5 2 . . . . . . Energy Gun 4 | . . . . . 11 . . . . . . . . . 3 Ballistic Gun 10 | . 26 14 21 11 6 . . . . . . . . . . Launcher 1 | . . 13 . 11 . . . . . . . . . . . Slashing Weapon 1 | . . . . . . 13 13 11 8 . . . . 3 . Naked Turns . | . . . . . . . . . . . . . . . . Heaviest Build 108 | 13 35 35 101 101 108 101 24 25 24 26 26 26 26 21 25 Greatest Support 60 | 20 24 24 36 32 60 30 29 34 46 28 26 34 34 23 36 Greatest Overweight (x) 25 | . 1 1 7 3 25 3 . . 1 . . . 1 . 4 Average Overweight (x) 1 | . . 1 2 3 4 . . . . . . . . . . Largest Inventory Capacity 25 | 8 15 15 25 25 25 25 5 5 5 5 5 5 5 5 5 Average Capacity 18 | 6 11 15 24 25 25 6 5 5 5 5 5 5 5 5 5 Most Carried 25 | 3 12 14 25 25 25 24 5 5 4 5 5 5 5 5 5 Average Carried 15 | 1 7 13 19 25 23 5 4 4 2 3 5 5 5 3 2 Final Capacity 25 | 8 15 15 25 25 25 5 5 5 5 5 5 5 5 5 5 Final Carried 25 | 3 12 13 25 25 24 5 5 5 3 5 5 5 5 3 1 Class Distribution -------------------- 61% | Mutant 20% | Scavenger-Mutant 9% | Hacker-Sprinter 3% | Hacker-Mutant Dominant Class ---------------- Mutant | -10/Materials Mutant | -10/Mines Mutant | -9/Materials Mutant | -9/Mines Mutant | -8/Materials Hacker-Sprinter | -7/Factory Hacker-Sprinter | -6/Factory Hacker-Scout | -5/Factory Hacker-Sprinter | -4/Factory Scavenger-Sprinter | -4/Upper Caves Hacker-Sprinter | -4/Upper Caves Hacker-Sprinter | -3/Research Hacker-Sprinter | -3/DSF Hacker-Sprinter | -2/Research Hacker-Mutant | -1/Access Resources | -11 -10 -10 -9 -9 -8 -7 -6 -5 -4 -4 -4 -3 -3 -2 -1 ----------- Run | Jun Mat Min Mat Min Mat Fac Fac Fac Fac Upp Upp Res DSF Res Acc Matter Collected 3357 | 266 375 75 1095 . 1030 43 . 63 231 121 . . . 45 13 Remotely . | . . . . . . . . . . . . . . . . Salvage Created 5231 | 75 402 136 1782 . 2176 102 . 109 253 . . . . 49 147 Parts 343 | 3 30 18 128 . 126 6 . 10 14 . . . . 3 5 Haulers Intercepted 8 | . . . 3 . 5 . . . . . . . . . . Recyclers Shooed 5 | . . . . . 5 . . . . . . . . . . Parts Field Recycled . | . . . . . . . . . . . . . . . . Retrieved Matter . | . . . . . . . . . . . . . . . . Parts Self-Destructed 4 | . . . . . . . . . . 4 . . . . . Prevented . | . . . . . . . . . . . . . . . . Kills | -11 -10 -10 -9 -9 -8 -7 -6 -5 -4 -4 -4 -3 -3 -2 -1 ------- Run | Jun Mat Min Mat Min Mat Fac Fac Fac Fac Upp Upp Res DSF Res Acc Combat Hostiles Destroyed 90 | . 11 10 30 . 35 1 . . 3 . . . . . . Melee 4 | . . . . . . 1 . . 3 . . . . . . Guns 65 | . 11 . 27 . 27 . . . . . . . . . . AOE 19 | . . 10 3 . 6 . . . . . . . . . . Classes Destroyed 13 | 1 3 . 5 . 3 . . . 1 . . . . . . Worker 12 | . . . 5 . 3 . . 3 . . . . . . 1 Builder 1 | . . . . . 1 . . . . . . . . . . Tunneler 1 | . . . . . 1 . . . . . . . . . . Hauler 8 | . . . 3 . 5 . . . . . . . . . . Recycler 11 | 1 . . 2 . 6 . . . 1 . . . . . 1 Mechanic 1 | . . . 1 . . . . . . . . . . . . Operator 7 | . . . 4 . 1 1 . 1 . . . . . . . Watcher 9 | . 1 . 2 . 3 1 . 1 . . . . . 1 . Swarmer 25 | . 3 8 3 . 11 . . . . . . . . . . Cutter 3 | . . . . . . . . . 3 . . . . . . Grunt 45 | . 8 2 19 . 16 . . . . . . . . . . Sentry 15 | . . . 8 . 7 . . . . . . . . . . Hunter 2 | . . . . . 1 1 . . . . . . . . . Best Kill Streak 12 | 1 3 3 12 . 11 2 . 2 3 . . . . 1 1 Combat Bots Only 10 | . 3 3 6 . 10 1 . . 3 . . . . . . Max Kills in Single Turn 3 | 1 1 3 3 . 2 1 . 1 1 . . . . 1 1 Gunslinging . | . . . . . . . . . . . . . . . . Exploded 3 | . . 3 3 . 2 . . . . . . . . . . Melee 1 | . . . . . . 1 . . 1 . . . . . . Uniques/NPCs Destroyed . | . . . . . . . . . . . . . . . . Combat | -11 -10 -10 -9 -9 -8 -7 -6 -5 -4 -4 -4 -3 -3 -2 -1 -------- Run | Jun Mat Min Mat Min Mat Fac Fac Fac Fac Upp Upp Res DSF Res Acc Damage Taken 9282 | . 404 98 1149 . 2880 117 218 19 1268 36 . . 66 473 2554 Core 3262 | . 22 25 226 . 503 42 46 . 563 . . . 22 202 1611 Absorbed by Shields 23 | . . . . . . . 23 . . . . . . . . Redirected to Shielding 112 | . . . . . . . . . 112 . . . . . . Core Remaining (%) 75 | 100 . 81 . 43 8 94 94 100 . . 51 . 98 86 . Volleys Fired 320 | 2 35 7 115 . 146 . . . . . . . . . 15 Largest 2 | 2 2 2 2 . 2 . . . . . . . . . 2 Hottest 176 | 60 40 50 56 . 138 . . . . . . . . . 176 Shots Fired 630 | 4 67 10 230 . 289 . . . . . . . . . 30 Gun 611 | 4 66 4 228 . 279 . . . . . . . . . 30 Cannon . | . . . . . . . . . . . . . . . . Launcher 19 | . 1 6 2 . 10 . . . . . . . . . . Special . | . . . . . . . . . . . . . . . . Kinetic 480 | 2 64 4 228 . 182 . . . . . . . . . . Thermal 107 | 2 . . . . 97 . . . . . . . . . 8 Explosive 19 | . 1 6 2 . 10 . . . . . . . . . . Electromagnetic 24 | . 2 . . . . . . . . . . . . . 22 Robot Hit Streak 22 | 4 9 6 22 . 12 . . . . . . . . . 13 Robot Miss Streak 9 | . 3 1 4 . 9 . . . . . . . . . 3 Penetration Max . | . . . . . . . . . . . . . . . . Secondary Targets 1 | . . . . . 1 . . . . . . . . . . Max Gunslinging Chain 1 | . . . . . 1 . . . . . . . . . . Shots Hit Robots 428 | 4 43 2 151 . 187 4 . 7 12 . . . . 1 17 Core Hits 200 | 1 19 10 69 . 87 3 . 3 2 . . . . 1 5 Critical Kills 2 | . 1 . . . 1 . . . . . . . . . . Critical Parts Destroyed . | . . . . . . . . . . . . . . . . Critical Strikes 4 | . 1 . . . 3 . . . . . . . . . . Burn 2 | . . . . . 2 . . . . . . . . . . Destroy 2 | . 1 . . . 1 . . . . . . . . . . Melee Attacks 36 | . . . . . . 4 1 11 19 . . . . 1 . Impact . | . . . . . . . . . . . . . . . . Slashing 36 | . . . . . . 4 1 11 19 . . . . 1 . Piercing . | . . . . . . . . . . . . . . . . Sneak Attacks 6 | . . . . . . . . 4 2 . . . . . . Combat Hostiles . | . . . . . . . . . . . . . . . . Follow-up Attacks 5 | . . . . . . 1 . 2 2 . . . . . . Damage Inflicted 8245 | 51 551 381 2387 . 3564 156 . 445 458 . . . . 50 202 Guns 6106 | 51 551 10 2223 . 3088 . . . . . . . . . 183 Cannons . | . . . . . . . . . . . . . . . . Explosions 1011 | . . 371 164 . 476 . . . . . . . . . . Melee 1107 | . . . . . . 156 . 445 458 . . . . 48 . Ramming 21 | . . . . . . . . . . . . . . 2 19 Kinetic 4570 | 29 551 10 2223 . 1757 . . . . . . . . . . Thermal 1508 | 22 . . . . 1331 . . . . . . . . . 155 Explosive 1011 | . . 371 164 . 476 . . . . . . . . . . Electromagnetic 28 | . . . . . . . . . . . . . . . 28 Impact . | . . . . . . . . . . . . . . . . Slashing 1107 | . . . . . . 156 . 445 458 . . . . 48 . Piercing . | . . . . . . . . . . . . . . . . Highest Corruption 11 | . . . . . 5 . . . 2 2 2 . . 8 11 Average Corruption 4 | . . . . . 4 . . . 2 2 2 . . 8 5 Corruption Purged . | . . . . . . . . . . . . . . . . Corruption Blocked . | . . . . . . . . . . . . . . . . Effects 50 | . . . . . 42 . . . . 5 . . . 1 2 Message Errors 12 | . . . . . 10 . . . . . . . . 1 1 Matter Fused 10 | . . . . . 8 . . . . 1 . . . . 1 Heat Flow Errors 4 | . . . . . 3 . . . . 1 . . . . . Energy Discharges 12 | . . . . . 11 . . . . 1 . . . . . Parts Fused 2 | . . . . . 1 . . . . 1 . . . . . Data Loss (minor) 4 | . . . . . 4 . . . . . . . . . . Data Loss (major) 3 | . . . . . 2 . . . . 1 . . . . . Misfires 1 | . . . . . 1 . . . . . . . . . . Alerts 2 | . . . . . 2 . . . . . . . . . . Overload Shots . | . . . . . . . . . . . . . . . . Overflow Damage 263 | . . 26 . . . 25 . 129 83 . . . . . . Projectiles . | . . . . . . . . . . . . . . . . Explosions 26 | . . 26 . . . . . . . . . . . . . Melee 237 | . . . . . . 25 . 129 83 . . . . . . Knockbacks 1 | . . . . . . . . . . . . . . . 1 Impact 1 | . . . . . . . . . . . . . . . 1 Kinetic . | . . . . . . . . . . . . . . . . Secondary . | . . . . . . . . . . . . . . . . Self-Inflicted Damage 213 | . . 56 . . 147 . . . . . . . . 1 9 Shots 7 | . . 2 . . 5 . . . . . . . . . . Rammed 7 | . . . . . . . 1 . . . . . . 2 4 Targets Rammed 7 | . . . . . . . 1 . . . . . . 2 4 Kicked . | . . . . . . . . . . . . . . . . Crushed . | . . . . . . . . . . . . . . . . Highest Temperature 403 | . 63 6 15 . 403 . 119 27 317 205 13 128 . . 127 Average Temperature 62 | . 24 3 3 . 107 . 38 8 140 36 4 48 . . 62 Received Heat Transfer 2299 | . 243 . 495 . 1080 12 42 9 211 . . . . 18 189 Effects 4 | . . . . . 3 . . . 1 . . . . . . Shutdowns 1 | . . . . . 1 . . . . . . . . . . Energy Bleed 2 | . . . . . 1 . . . 1 . . . . . . Matter Decay 1 | . . . . . 1 . . . . . . . . . . Siege Activations . | . . . . . . . . . . . . . . . . Robots Corrupted . | . . . . . . . . . . . . . . . . Combat Hostiles . | . . . . . . . . . . . . . . . . Parts Fried . | . . . . . . . . . . . . . . . . Impact Corruptions . | . . . . . . . . . . . . . . . . Robots Melted 2 | . . . . . 2 . . . . . . . . . . Combat Hostiles 2 | . . . . . 2 . . . . . . . . . . Parts Melted 9 | . . . . . 7 . . . . . . . . . 2 Heat Transferred 3010 | 50 . . . . 2738 . . . . . . . . . 222 Parts Sabotaged . | . . . . . . . . . . . . . . . . Parts Stolen . | . . . . . . . . . . . . . . . . Parts Stripped . | . . . . . . . . . . . . . . . . Power Chain Reactions . | . . . . . . . . . . . . . . . . Missiles Intercepted . | . . . . . . . . . . . . . . . . Alert | -11 -10 -10 -9 -9 -8 -7 -6 -5 -4 -4 -4 -3 -3 -2 -1 ------- Run | Jun Mat Min Mat Min Mat Fac Fac Fac Fac Upp Upp Res DSF Res Acc Peak Influence 718 | 5 265 278 718 65 567 439 327 262 519 . . 280 210 151 254 Initial 280 | . 3 70 . 65 25 241 221 159 123 . . 280 210 106 51 Average 288 | 1 122 162 339 65 390 323 247 210 260 . . 280 209 123 101 Maximum Alert Level 3 | . 1 1 3 . 2 2 1 1 2 . . 1 1 . 1 Low Security (%) 33 | 100 85 58 32 100 6 . . 37 32 . . . . 100 84 Level 1 38 | . 14 41 28 . 41 87 100 62 56 . . 100 100 . 15 Level 2 28 | . . . 38 . 51 12 . . 11 . . . . . . Level 3 . | . . . 1 . . . . . . . . . . . . Level 4 . | . . . . . . . . . . . . . . . . Level 5 . | . . . . . . . . . . . . . . . . High Security . | . . . . . . . . . . . . . . . . Max Security . | . . . . . . . . . . . . . . . . Squads Dispatched 19 | . 2 . 5 . 4 2 . . 2 . . . 1 1 2 Investigation 2 | . . . . . . . . . 1 . . . . . 1 Extermination 1 | . . . . . . . . . . . . . . . 1 Reinforcement 16 | . 2 . 5 . 4 2 . . 1 . . . 1 1 . Assault . | . . . . . . . . . . . . . . . . Garrison . | . . . . . . . . . . . . . . . . Intercept . | . . . . . . . . . . . . . . . . Searches Triggered . | . . . . . . . . . . . . . . . . Construction Impeded 1 | . . . . . 1 . . . . . . . . . . Haulers Reinforced . | . . . . . . . . . . . . . . . . Active Scanning Responses . | . . . . . . . . . . . . . . . . Cargo Convoy Interrupts . | . . . . . . . . . . . . . . . . Stealth | -11 -10 -10 -9 -9 -8 -7 -6 -5 -4 -4 -4 -3 -3 -2 -1 --------- Run | Jun Mat Min Mat Min Mat Fac Fac Fac Fac Upp Upp Res DSF Res Acc Distress Signals 9 | . 1 . 1 . 5 . . . 2 . . . . . . Communications Jammed . | . . . . . . . . . . . . . . . . Distress Signals . | . . . . . . . . . . . . . . . . Times Spotted 224 | . 18 9 46 . 53 9 13 4 18 13 . . 4 15 22 Peak Tracking Total 16 | . 5 3 4 . 6 3 10 2 13 8 . . 4 16 11 Tactical Retreats 26 | . 1 . 3 . 3 2 2 1 3 5 . . . . 6 Traps | -11 -10 -10 -9 -9 -8 -7 -6 -5 -4 -4 -4 -3 -3 -2 -1 ------- Run | Jun Mat Min Mat Min Mat Fac Fac Fac Fac Upp Upp Res DSF Res Acc Traps Triggered 8 | . . . 1 . 2 . 1 . 3 . . . . . 1 Indirectly . | . . . . . . . . . . . . . . . . Trap Hack Attempts . | . . . . . . . . . . . . . . . . Triggered . | . . . . . . . . . . . . . . . . Disarmed . | . . . . . . . . . . . . . . . . Reprogrammed . | . . . . . . . . . . . . . . . . Reused . | . . . . . . . . . . . . . . . . Traps Extracted . | . . . . . . . . . . . . . . . . Installed . | . . . . . . . . . . . . . . . . Triggered . | . . . . . . . . . . . . . . . . Machines | -11 -10 -10 -9 -9 -8 -7 -6 -5 -4 -4 -4 -3 -3 -2 -1 ---------- Run | Jun Mat Min Mat Min Mat Fac Fac Fac Fac Upp Upp Res DSF Res Acc Machines Disabled 3 | . . . 1 . 2 . . . . . . . . . . Max in Single Turn 1 | . . . 1 . 1 . . . . . . . . . . Garrison Access 4 | . . . . . 1 1 . 1 1 . . . . . . Machines Repaired . | . . . . . . . . . . . . . . . . Machines Sabotaged . | . . . . . . . . . . . . . . . . Overloaded Fab Kills . | . . . . . . . . . . . . . . . . Hacking | -11 -10 -10 -9 -9 -8 -7 -6 -5 -4 -4 -4 -3 -3 -2 -1 --------- Run | Jun Mat Min Mat Min Mat Fac Fac Fac Fac Upp Upp Res DSF Res Acc Machines Accessed 29 | . 2 . 2 . 3 7 1 5 2 . . 2 . 1 4 Terminals 20 | . 2 . 1 . 2 3 1 4 1 . . 2 . 1 3 Fabricators 2 | . . . . . . 1 . . . . . . . . 1 Repair Stations . | . . . . . . . . . . . . . . . . Recycling Units . | . . . . . . . . . . . . . . . . Scanalyzers 3 | . . . 1 . . 2 . . . . . . . . . Garrison Access 4 | . . . . . 1 1 . 1 1 . . . . . . Total Hacks 78 | . 4 . 8 . 5 14 5 18 5 . . 6 . 5 8 Successful 39 | . 3 . 5 . 4 10 1 9 3 . . 1 . 2 1 Failed 38 | . 1 . 3 . 1 4 4 8 2 . . 5 . 3 7 Catastrophic 7 | . . . . . 1 . . . . . . 3 . 1 2 Database Lockouts 1 | . . . . . . . . 1 . . . . . . . Manual 34 | . . . . . 2 5 3 13 2 . . . . 5 4 Terminals 64 | . 4 . 7 . 4 7 5 17 3 . . 6 . 5 6 Fabricators 4 | . . . . . . 2 . . . . . . . . 2 Repair Stations . | . . . . . . . . . . . . . . . . Recycling Units . | . . . . . . . . . . . . . . . . Scanalyzers 4 | . . . 1 . . 3 . . . . . . . . . Garrison Access 6 | . . . . . 1 2 . 1 2 . . . . . . Terminal Hacks 30 | . 3 . 5 . 3 5 1 7 2 . . 1 . 2 1 Record 4 | . . . . . . . . 2 1 . . . . . 1 Robot Analysis 1 | . . . . . . 1 . . . . . . . . . Prototype ID Bank 1 | . . . . . 1 . . . . . . . . . . Open DSF 1 | . . . . . . . . . . . . 1 . . . Level Access Points 4 | . . . . . . 1 1 1 . . . . . 1 . Terminal Index 3 | . . . . . . 1 . 1 . . . . . 1 . Fabricator Index 1 | . . . . . . 1 . . . . . . . . . Alert Level 4 | . . . 2 . 1 . . 1 . . . . . . . Unreport Threat 3 | . . . 3 . . . . . . . . . . . . Locate Traps 1 | . 1 . . . . . . . . . . . . . . Hauler Manifests 2 | . 1 . . . 1 . . . . . . . . . . Registered Components 3 | . 1 . . . . . . 1 1 . . . . . . Registered Prototypes 1 | . . . . . . . . 1 . . . . . . . Zone Layout 1 | . . . . . . 1 . . . . . . . . . Fabricator Hacks 1 | . . . . . . 1 . . . . . . . . . Network Status 1 | . . . . . . 1 . . . . . . . . . Repair Station Hacks . | . . . . . . . . . . . . . . . . Recycling Unit Hacks . | . . . . . . . . . . . . . . . . Scanalyzer 2 | . . . . . . 2 . . . . . . . . . Insert Component 1 | . . . . . . 1 . . . . . . . . . Analyze 1 | . . . . . . 1 . . . . . . . . . Garrison Access Hacks 3 | . . . . . 1 1 . 1 . . . . . . . Seal Access 3 | . . . . . 1 1 . 1 . . . . . . . Unauthorized Hacks 3 | . . . . . . 1 . 1 1 . . . . . . Terminals 1 | . . . . . . . . 1 . . . . . . . Assimilate 1 | . . . . . . . . 1 . . . . . . . Fabricators . | . . . . . . . . . . . . . . . . Repair Stations . | . . . . . . . . . . . . . . . . Recycling Units . | . . . . . . . . . . . . . . . . Scanalyzers 1 | . . . . . . 1 . . . . . . . . . Researchers 1 | . . . . . . 1 . . . . . . . . . Garrison Access 1 | . . . . . . . . . 1 . . . . . . Jam 1 | . . . . . . . . . 1 . . . . . . Data Cores Recovered 1 | . . . . . . . . 1 . . . . . . . Used . | . . . . . . . . . . . . . . . . Hacking Detections 22 | . 2 . 2 . 2 4 1 4 2 . . 1 . 1 3 Full Trace Events 1 | . . . . . . . . . . . . . . . 1 Feedback Events . | . . . . . . . . . . . . . . . . Feedback Blocked . | . . . . . . . . . . . . . . . . Robot Schematics Acquired . | . . . . . . . . . . . . . . . . Robots Built . | . . . . . . . . . . . . . . . . Authchips . | . . . . . . . . . . . . . . . . Time . | . . . . . . . . . . . . . . . . Total Robot Build Rating . | . . . . . . . . . . . . . . . . Part Schematics Acquired 1 | . . . . . . 1 . . . . . . . . . Parts Built . | . . . . . . . . . . . . . . . . Authchips . | . . . . . . . . . . . . . . . . Time . | . . . . . . . . . . . . . . . . Total Part Build Rating . | . . . . . . . . . . . . . . . . Parts Repaired . | . . . . . . . . . . . . . . . . Time . | . . . . . . . . . . . . . . . . Parts Recycled . | . . . . . . . . . . . . . . . . Recycled Matter . | . . . . . . . . . . . . . . . . Retrieved Matter . | . . . . . . . . . . . . . . . . Retrieved Components . | . . . . . . . . . . . . . . . . Parts Scanalyzed 1 | . . . . . . 1 . . . . . . . . . Part Schematics Acquired 1 | . . . . . . 1 . . . . . . . . . Parts Damaged . | . . . . . . . . . . . . . . . . Bothacking | -11 -10 -10 -9 -9 -8 -7 -6 -5 -4 -4 -4 -3 -3 -2 -1 ------------ Run | Jun Mat Min Mat Min Mat Fac Fac Fac Fac Upp Upp Res DSF Res Acc Used RIF Installer . | . . . . . . . . . . . . . . . . Robots Hacked . | . . . . . . . . . . . . . . . . Non-combat . | . . . . . . . . . . . . . . . . Combat . | . . . . . . . . . . . . . . . . Robot Hacks Applied . | . . . . . . . . . . . . . . . . Relay Couplers Released . | . . . . . . . . . . . . . . . . Fabnet Peak Effective % . | . . . . . . . . . . . . . . . . Robots Rewired . | . . . . . . . . . . . . . . . . Allies Hacked . | . . . . . . . . . . . . . . . . Hacks Repelled . | . . . . . . . . . . . . . . . . Allies | -11 -10 -10 -9 -9 -8 -7 -6 -5 -4 -4 -4 -3 -3 -2 -1 -------- Run | Jun Mat Min Mat Min Mat Fac Fac Fac Fac Upp Upp Res DSF Res Acc Total Allies . | . . . . . . . . . . . . . . . . Largest Group . | . . . . . . . . . . . . . . . . Highest-Rated Group . | . . . . . . . . . . . . . . . . Highest-Rated Ally . | . . . . . . . . . . . . . . . . Total Orders . | . . . . . . . . . . . . . . . . Ally Attacks . | . . . . . . . . . . . . . . . . Total Damage . | . . . . . . . . . . . . . . . . Kills . | . . . . . . . . . . . . . . . . Allies Corrupted . | . . . . . . . . . . . . . . . . Allies Melted . | . . . . . . . . . . . . . . . . Intel | -11 -10 -10 -9 -9 -8 -7 -6 -5 -4 -4 -4 -3 -3 -2 -1 ------- Run | Jun Mat Min Mat Min Mat Fac Fac Fac Fac Upp Upp Res DSF Res Acc Robot Analysis Total 1 | . . . . . . 1 . . . . . . . . . Derelict Logs Recovered 4 | . . 3 . . . . . . . 1 . . . . . Drone Launches . | . . . . . . . . . . . . . . . . Drone Recoveries . | . . . . . . . . . . . . . . . . Exploration | -11 -10 -10 -9 -9 -8 -7 -6 -5 -4 -4 -4 -3 -3 -2 -1 ------------- Run | Jun Mat Min Mat Min Mat Fac Fac Fac Fac Upp Upp Res DSF Res Acc Turns Passed 7104 | 63 644 870 1385 35 2643 315 74 194 153 186 13 48 11 69 401 Spaces Moved 6082 | 58 485 706 658 28 917 733 168 437 275 636 47 185 54 165 530 Core 164 | 13 . . . . . . . . . . . . . 6 145 Treads 85 | . . . . . 85 . . . . . . . . . . Legs . | . . . . . . . . . . . . . . . . Wheels 2914 | 45 485 706 658 28 828 4 . . . . . . . . 160 Hover . | . . . . . . . . . . . . . . . . Flight 2919 | . . . . . 4 729 168 437 275 636 47 185 54 159 225 Fastest Speed 12 | 50 80 105 105 128 115 26 26 26 12 20 24 21 12 27 40 Average Speed 80 | 73 97 105 123 128 192 27 26 26 25 23 24 22 21 28 59 Slowest Speed 2040 | 80 105 105 195 128 2040 125 29 33 122 24 24 24 87 50 250 Overloaded Moves 48 | . . . . . . . . . 22 2 . . 5 19 . Propulsion Burnouts 1 | . . . . . . . . . . . . . 1 . . Robots Hopped 39 | . . . . . . 16 5 1 6 2 . 2 . 5 2 Cave-ins Triggered 1 | . . . . . 1 . . . . . . . . . . Exploration Rate (%) 32 | 4 56 88 48 13 69 22 6 12 11 79 9 7 66 9 21 Regions Visited 15 Branch Regions 4 Pre-discovered Areas 1 | . . 1 . . . . . . . . . . . . . Known Exits Taken 8 | . . . . . . 1 1 1 1 1 1 1 . 1 . Unknown Exits Taken 6 | 1 1 1 1 1 1 . . . . . . . . . . Scrap Searched 5 | . . 1 . . . . . . . 3 1 . . . . Spaces Dug 57 | . 5 8 19 . 25 . . . . . . . . . . Terrain Destroyed 155 | . 5 39 19 . 92 . . . . . . . . . . Melee . | . . . . . . . . . . . . . . . . Projectile . | . . . . . . . . . . . . . . . . AOE 155 | . 5 39 19 . 92 . . . . . . . . . . Terrain Rammed . | . . . . . . . . . . . . . . . . Walls Destroyed . | . . . . . . . . . . . . . . . . Machines Disabled . | . . . . . . . . . . . . . . . . Actions | -11 -10 -10 -9 -9 -8 -7 -6 -5 -4 -4 -4 -3 -3 -2 -1 --------- Run | Jun Mat Min Mat Min Mat Fac Fac Fac Fac Upp Upp Res DSF Res Acc Total 7602 | 74 590 823 1011 27 1513 833 190 498 323 667 47 188 53 181 584 Wait 829 | . 43 105 172 . 350 69 . 35 9 20 . 5 . 11 10 Move 5997 | 57 484 705 657 27 916 703 159 434 263 631 46 180 53 156 526 Hop 33 | . . . . . . 13 4 1 5 2 . 2 . 4 2 Pick Up 132 | 9 14 2 30 . 27 11 4 5 13 5 . . . 2 10 Fast Attach 16 | . . . 1 . 7 . 1 3 . 2 1 1 . . . Attach 94 | 6 1 1 11 . 22 11 2 4 16 4 . . . 4 12 Detach 7 | . . . . . 3 . . . 1 2 . . . . 1 Swap 53 | . 7 3 12 . 21 5 2 3 . . . . . . . Drop 73 | . 6 . 13 . 21 18 3 5 . 1 . . . 2 4 Fire 320 | 2 35 7 115 . 146 . . . . . . . . . 15 Melee 29 | . . . . . . 3 1 8 16 . . . . 1 . Ram 5 | . . . . . . . . . . . . . . 1 4 Kick . | . . . . . . . . . . . . . . . . Crush . | . . . . . . . . . . . . . . . . Escape Stasis 14 | . . . . . . . 14 . . . . . . . . Rewire . | . . . . . . . . . . . . . . . . Trap . | . . . . . . . . . . . . . . . . Miscellaneous . | . . . . . . . . . . . . . . . . Route ------- -11/Junkyard -10/Materials (discovered 3 exits: *Mat x2 / [*Min]) -10/Mines (discovered 2 exits: *Mat x2) -9/Materials -9/Mines -8/Materials (discovered 3 exits: *Fac x2 / [*Sto]) -7/Factory (discovered 4 exits: *Fac x4) -6/Factory (discovered 4 exits: *Fac x4) -5/Factory (discovered 4 exits: *Fac x4) -4/Factory -4/Upper Caves -4/Upper Caves -3/Research -3/DSF -2/Research (discovered 3 exits: *Acc x3) -1/Access History --------- Turn | Location | Event 16 | -11/Junkyard | Discovered new exit (range 15) 64 | -11/Junkyard | Entered Materials 272 | -10/Materials | Discovered new exit (range 10) 314 | -10/Materials | Build established: Mutant 353 | -10/Materials | Discovered new exit (range 16) 498 | -10/Materials | Discovered new exit (range 16) 708 | -10/Materials | Entered Mines 980 | -10/Mines | Learned Materials security intel 1091 | -10/Mines | Learned Materials garrison access intel 1190 | -10/Mines | Discovered new exit (range 4) 1246 | -10/Mines | Discovered new exit (range 5) 1578 | -10/Mines | Entered Materials 1578 | -9/Materials | Evolved 2 slots: Propulsion x1, Utility x1 2276 | -9/Materials | Build established: Scavenger-Mutant 2519 | -9/Materials | Lost 4 parts (2p2n) 2597 | -9/Materials | Build established: Mutant 2720 | -9/Materials | Core integrity fell below 50% 2942 | -9/Materials | Discovered new exit (range 15) 2963 | -9/Materials | Entered Mines 2983 | -9/Mines | Discovered new exit (range 10) 2998 | -9/Mines | Entered Materials 2998 | -8/Materials | Evolved 2 slots: Propulsion x1, Utility x1 2999 | -8/Materials | Loaded intel: 1 garrison access location 3236 | -8/Materials | Destroyed 10 combat bots 3369 | -8/Materials | Lost 7 parts (1p3n2u1w) 3436 | -8/Materials | Core integrity fell below 50% 4016 | -8/Materials | Discovered new exit (range 9) 4043 | -8/Materials | Crushed by falling debris 4512 | -8/Materials | Core integrity fell below 20% 4836 | -8/Materials | Discovered new exit (range 13) 4892 | -8/Materials | Build established: Scavenger-Mutant 5628 | -8/Materials | Discovered new exit (range 6) 5641 | -8/Materials | Entered Factory 5641 | -7/Factory | Evolved 2 slots: Utility x2 5852 | -7/Factory | Identified exit to Factory 5943 | -7/Factory | Build established: Hacker-Sprinter 5956 | -7/Factory | Entered another Factory area 5956 | -6/Factory | Evolved 2 slots: Power x1, Propulsion x1 5961 | -6/Factory | Identified exit to Factory 6030 | -6/Factory | Entered another Factory area 6030 | -5/Factory | Evolved 2 slots: Utility x2 6059 | -5/Factory | Identified exit to Factory 6081 | -5/Factory | Central database locked down 6224 | -5/Factory | Entered another Factory area 6224 | -4/Factory | Evolved 2 slots: Propulsion x2 6254 | -4/Factory | Spotted B-86 Titan 6352 | -4/Factory | Discovered new exit (range 11) 6354 | -4/Factory | Identified exit to Upper Caves 6377 | -4/Factory | Entered Upper Caves 6392 | -4/Upper Caves | Lost 12 parts (1p6n4u1w) 6490 | -4/Upper Caves | Attracted the attention of an 0b10 checkpoint 6544 | -4/Upper Caves | Identified exit to Upper Caves 6563 | -4/Upper Caves | Entered another Upper Caves area 6563 | -4/Upper Caves | Discovered new exit (range 14) 6567 | -4/Upper Caves | Identified exit to Research 6576 | -4/Upper Caves | Entered Research 6576 | -3/Research | Evolved 2 slots: Propulsion x1, Utility x1 6624 | -3/Research | Identified exit to DSF 6624 | -3/Research | Entered DSF 6632 | -3/DSF | Discovered new exit (range 21) 6635 | -3/DSF | Identified exit to Research 6635 | -3/DSF | Entered Research 6635 | -2/Research | Evolved 2 slots: Utility x2 6639 | -2/Research | Identified exit to Access 6704 | -2/Research | Entered Access 6704 | -1/Access | Evolved 2 slots: Power x1, Propulsion x1 6731 | -1/Access | Lost 12 parts (1p6n5u) 6907 | -1/Access | Lost 4 parts (2n2w) 7050 | -1/Access | Core integrity fell below 50% 7090 | -1/Access | System corruption reached 10% 7098 | -1/Access | Core integrity fell below 20% 7105 | -1/Access | Destroyed by G-73 Enforcer with Heavy Laser Last Messages --------------- 07016_ Adv. Transmission Jammer destroyed. 07020_ LTIGM#TB8FHU&E3 KFNYWA 07021_ P-80 Master resets P-80 Master, system corruption cleaned. 07041_ Acquired Imp. Arc Projector. 07049_ P-80 Master resets P-80 Master, system corruption cleaned. 07079_ Imp. Arc Projector destroyed. 07082_ Dropped Imp. Arc Projector. 07082_ System Shield destroyed. 07085_ Lyr. Light Armor Plating destroyed. 07088_ Slammed into P-80 Master. 07089_ P-80 Master knocked back. 07089_ Adv. Signal Interpreter destroyed. 07089_ System corrupted by crushing effect (+3). 07090_ Slammed into P-80 Master. 07090_ Destabilizing: System interference. 07090_ Enh. Optical Array temporarily disabled. 07091_ Slammed into P-80 Master. 07092_ P-80 Master resets P-80 Master, system corruption cleaned. 07094_ Door malfunctions. 07100_ System corrupted: Matter fused (-6). Map ----- +----------------------------------------------------+ | ????????????????????????#"" # == | | ????????????????????????#"" # | | ????????????????????????# # | | ????????????????????????# # | | ????????????????????????# # | | ????????????????????????######## # | | ???????????????????????????????# # | | ???????????????????????????????# # | | ???????????????????????????????# ##########? | | ???????????????????????????????# #?????????? | | ???????????????????????????????# #?????????? | | ????????????????????????######## ########### | | ????????????????????????# | | ????????????????????????# | | ????????????????????????# | | ????????????????????????# | | ????????????????????????# | | ????????????????????????# | | ??????????############### | | ??????????# ##########+####### | | ??????????# #??????? ????? | | ??????????# #????? ??? | | ??????????# #???# ? | | ########### #???# "" # | | # g #???# ] "" # | | # gg @ #???# """""" # | | # ###############???# """""" # | | # ##############????# "" # | | # # #????# "" # | | + / #????# = # | | # # #????# ?? # | | # # #????# ?? # | | # # #????######????#### | | ######### #?????????????????? | | #???????# #?????????????????? | | #???????# #?????????????????? | | ###########???????# #?????????????????? | | ??????????????????# #?????????????????? | | ??????????????????? ! #?????????????????? | | ??????????????????? ! ??????????????????? | | ???????????????????############??????????????????? | | ?????????????????????????????????????????????????? | | ?????????????????????????????????????????????????? | | ?????????????????????????????????????????????????? | | ?????????????????????????????????????????????????? | | ?????????????????????????????????????????????????? | | ?????????????????????????????????????????????????? | | | | | | | +----------------------------------------------------+ Best States ------------- Heat Dissipation 52 Energy Generation 33 Energy Capacity 900 Matter Stores 460 Matter Capacity 500 Sight Range 22 Robot Scan Range 16 Terrain Scan Density 10 ECM Strength 2 Armor Coverage 450 Propulsion Shielding 66 Evasion (%) 75 Recoil Reduction 3 Offensive Hacking 30 Defensive Hacking 32 Item Schematics ----------------- Imp. VTOL Module | -7/Factory | Scanalyzed Robot Schematics ------------------ None Fabricated ------------ Nothing Alien Tech Used ----------------- None Achievements -------------- None Challenges ------------ None Game ------ Seed SlugDefenseRecalibrator Manual? 0 Play Time 01:36:39 Cumulative 77.1 hours Start 2023.04.05 @ 19:41:08 End 2023.04.05 @ 23:13:35 Sessions 3 Manual Loads 0 Difficulty Rogue Special Mode None Game No. 99 Rogue 99 Adventurer 0 Explorer 0 Win Type - Total 0 Types 0/0/0/0/0/0/0/0/0 Lore% 47 Gallery% 47 Achievement% 40 Wizard Run 0 Options --------- ASCII 0 Keyboard 0 Movement Arrows Keybinds 0 Fullscreen 1 Font 12/Smallcaps Map View 83x54 Tactical HUD 1 Map Filters NONE Filters NONE Steam 1 RUN: 274b5eab-7b3c-4b0b-a7f4-5afa16bf9603